fUSD/lending_fUSD_20240820
["ID","MTS","AMOUNT","RATE_DAILY","PERIOD"]
[335324540,1724112643876,-967.2,0.00010986,2]
[335324541,1724112643886,-2832.1,0.00010986,2]
[335324542,1724112643895,-604.92,0.00010986,2]
[335324543,1724112643904,-151.0,0.00010986,2]
[335324544,1724112643914,-785.57,0.00010986,2]
[335324545,1724112643923,-785.57,0.00010986,2]
[335324546,1724112643932,-1843.54,0.00010986,2]
[335324547,1724112643941,-151.0,0.00010986,2]
[335324548,1724112643951,-1992.66,0.00010986,2]
[335324549,1724112643960,-1270.61,0.00010986,2]
[335324550,1724112643969,-1270.61,0.00010986,2]
[335324551,1724112643979,-590.59,0.00010986,2]
[335324552,1724112643991,-17883.61,0.00010986,2]
[335324553,1724112643999,-614.22,0.00010986,2]
[335324554,1724112644009,-6242.71,0.00010986,2]
[335324555,1724112644018,-151.0,0.00010986,2]
[335324556,1724112644027,-500.0,0.00010986,2]
[335324557,1724112644037,-151.0,0.00010986,2]
[335324558,1724112644046,-16551.5,0.00010986,2]
[335324559,1724112644055,-16551.5,0.00010986,2]
[335324560,1724112644064,-390.684488,0.00010986,2]
[335324561,1724112644073,-390.684488,0.00010986,2]
[335324562,1724112644083,-530.452209,0.00010986,2]
[335324563,1724112644091,-500.0,0.00010986,2]
[335324564,1724112644101,-530.452209,0.00010986,2]
[335324565,1724112644110,-3007.34,0.00010986,2]
[335324566,1724112644120,-3007.34,0.00010986,2]
[335324567,1724112644130,-500.0,0.00010986,2]
[335324568,1724112644139,-151.0,0.00010986,2]
[335324569,1724112644149,-500.0,0.00010986,2]
[335324570,1724112644158,-516.34,0.00010986,2]
[335324571,1724112644167,-3668.14,0.00010986,2]
[335324572,1724112644176,-3668.14,0.00010986,2]
[335324573,1724112644186,-500.0,0.00010986,2]
[335324574,1724112644196,-500.0,0.00010986,2]
[335324575,1724112644206,-3644.93,0.00010986,2]
[335324576,1724112644215,-3644.93,0.00010986,2]
[335324577,1724112644224,-5611.22,0.00010986,2]
[335324578,1724112644235,-4893.36,0.00010986,2]
[335324579,1724112644245,-4893.36,0.00010986,2]
[335324580,1724112644254,-500.0,0.00010986,2]
[335324581,1724112644264,-9405.7,0.00010986,2]
[335324582,1724112644277,-151.0,0.00010986,2]
[335324583,1724112644286,-183.263232,0.00010986,2]
[335324584,1724112644295,-1869.55,0.00010986,2]
[335324585,1724112644307,-183.263232,0.00010986,2]
[335324586,1724112644440,-151.0,0.00010986,2]
[335324587,1724112644450,-240.33,0.00010986,2]
[335324588,1724112644459,-151.0,0.00010986,2]
[335324589,1724112644468,-2287.92,0.00010986,2]
[335324590,1724112644478,-2287.92,0.00010986,2]
[335324591,1724112644490,-151.0,0.00010986,2]
[335324592,1724112644499,-5461.95,0.00010986,2]
[335324593,1724112644508,-572.6,0.00010986,2]
[335324594,1724112644517,-572.6,0.00010986,2]
[335324595,1724112644527,-500.0,0.00010986,2]
[335324596,1724112644536,-2521.0,0.00010986,2]
[335324597,1724112644546,-2521.0,0.00010986,2]
[335324598,1724112644555,-3144.87,0.00010986,2]
[335324599,1724112644564,-500.0,0.00010986,2]
[335324600,1724112644574,-17693.65,0.00010986,2]
[335324601,1724112644583,-151.0,0.00010986,2]
[335324602,1724112644592,-158.324852,0.00010986,2]
[335324603,1724112644602,-10877.04,0.00010986,2]
[335324604,1724112644611,-10877.04,0.00010986,2]
[335324605,1724112644620,-1474.09,0.00010986,2]
[335324606,1724112644630,-151.740482,0.00010986,2]
[335324607,1724112644639,-2395.86,0.00010986,2]
[335324608,1724112644648,-2395.86,0.00010986,2]
[335324609,1724112644658,-151.0,0.00010987,2]
[335324610,1724112644667,-500.0,0.00010987,2]
[335324611,1724112644676,-151.0,0.00010987,2]
[335324612,1724112644686,-151.0,0.00010987,2]
[335324613,1724112644695,-500.0,0.00010987,2]
[335324614,1724112644704,-500.0,0.00010987,2]
[335324615,1724112644713,-500.0,0.00010987,2]
[335324616,1724112644722,-151.0,0.00010987,2]
[335324617,1724112644733,-151.0,0.00010987,2]
[335324618,1724112644742,-151.0,0.00010987,2]
[335324619,1724112644751,-500.0,0.00010987,2]
[335324620,1724112644760,-511.79,0.00010987,2]
[335324621,1724112644770,-597.67,0.00010987,2]
[335324622,1724112644779,-500.0,0.00010987,2]
[335324623,1724112644788,-500.0,0.00010987,2]
[335324624,1724112644796,-860.82,0.00010987,2]
[335324625,1724112644806,-151.0,0.00010987,2]
[335324626,1724112644814,-500.0,0.00010987,2]
[335324627,1724112644824,-500.0,0.00010987,2]
[335324628,1724112644833,-597.09,0.00010987,2]
[335324629,1724112644842,-151.0,0.00010987,2]
[335324630,1724112644851,-500.0,0.00010987,2]
[335324631,1724112644861,-500.0,0.00010987,2]
[335324632,1724112644870,-162.843369,0.00010987,2]
[335324633,1724112644880,-162.843369,0.00010987,2]
[335324634,1724112644890,-2146.5,0.00010987,2]
[335324635,1724112644899,-151.0,0.00010987,2]
[335324636,1724112644908,-1678.18,0.00010987,2]
[335324637,1724112644917,-1108.21,0.00010987,2]
[335324638,1724112644926,-1556.87,0.00010987,2]
[335324639,1724112644935,-151.0,0.00010987,2]
[335324640,1724112644944,-151.0,0.00010987,2]
[335324641,1724112644953,-151.0,0.00010987,2]
[335324642,1724112644962,-1803.16,0.00010987,2]
[335324643,1724112644971,-500.0,0.00010987,2]
[335324644,1724112644980,-500.0,0.00010987,2]
[335324645,1724112644992,-500.0,0.00010987,2]
[335324646,1724112645002,-3779.98,0.00010987,2]
[335324647,1724112645011,-500.0,0.00010987,2]
[335324648,1724112645020,-151.0,0.00010987,2]
[335324649,1724112645029,-1136.11,0.00010987,2]
[335324650,1724112645039,-151.0,0.00010987,2]
[335324651,1724112645048,-1127.88,0.00010987,2]
[335324652,1724112645057,-519.05,0.00010987,2]
[335324653,1724112645066,-564.07,0.00010987,2]
[335324654,1724112645075,-1586.25,0.00010987,2]
[335324655,1724112645084,-343.228579,0.00010987,2]
[335324656,1724112645093,-500.0,0.00010987,2]
[335324657,1724112645102,-500.0,0.00010987,2]
[335324658,1724112645111,-327.4019569,0.00010987,2]
[335324659,1724112645121,-343.228579,0.00010987,2]
[335324660,1724112645130,-151.0,0.00010987,2]
[335324661,1724112645139,-500.0,0.00010987,2]
[335324662,1724112645149,-1159.21,0.00010987,2]
[335324663,1724112645158,-500.0,0.00010987,2]
[335324664,1724112645168,-276.279486,0.00010987,2]
[335324665,1724112645177,-151.0,0.00010987,2]
[335324666,1724112645186,-276.279486,0.00010987,2]
[335324667,1724112645196,-288.61914742,0.00010987,2]
[335324668,1724112645205,-500.0,0.00010987,2]
[335324669,1724112645214,-919.6,0.00010987,2]
[335324670,1724112645224,-919.6,0.00010987,2]
[335324671,1724112645234,-500.0,0.00010987,2]
[335324672,1724112645243,-500.0,0.00010987,2]
[335324673,1724112645253,-151.0,0.00010987,2]
[335324674,1724112645263,-500.0,0.00010987,2]
[335324675,1724112645276,-151.0,0.00010987,2]
[335324676,1724112645285,-1048.26,0.00010987,2]
[335324677,1724112645295,-1048.26,0.00010987,2]
[335324678,1724112645305,-151.0,0.00010987,2]
[335324679,1724112645315,-151.0,0.00010987,2]
[335324680,1724112645324,-151.0,0.00010987,2]
[335324681,1724112645334,-1755.03,0.00010987,2]
[335324682,1724112645345,-151.0,0.00010987,2]
[335324683,1724112645355,-1755.03,0.00010987,2]
[335324684,1724112645365,-151.0,0.00010987,2]
[335324685,1724112645374,-500.0,0.00010987,2]
[335324686,1724112645383,-500.0,0.00010987,2]
[335324687,1724112645393,-960.42,0.00010987,2]
[335324688,1724112645403,-960.42,0.00010987,2]
[335324689,1724112645412,-1413.97,0.00010987,2]
[335324690,1724112645422,-1413.97,0.00010987,2]
[335324691,1724112645431,-4463.21,0.00010987,2]
[335324692,1724112645440,-151.0,0.00010987,2]
[335324693,1724112645450,-151.0,0.00010987,2]
[335324694,1724112645459,-151.0,0.00010987,2]
[335324695,1724112645469,-500.0,0.00010987,2]
[335324696,1724112645478,-500.0,0.00010987,2]
[335324697,1724112645490,-2996.22,0.00010987,2]
[335324698,1724112645499,-2996.22,0.00010987,2]
[335324699,1724112645509,-2917.84,0.00010987,2]
[335324700,1724112645518,-2075.54,0.00010987,2]
[335324701,1724112645528,-2075.54,0.00010987,2]
[335324702,1724112645537,-151.0,0.00010987,2]
[335324703,1724112645547,-6438.37,0.00010987,2]
[335324704,1724112645556,-185.338777,0.00010987,2]
[335324705,1724112645565,-500.0,0.00010987,2]
[335324706,1724112645575,-185.338777,0.00010987,2]
[335324707,1724112645584,-4472.31,0.00010987,2]
[335324708,1724112645594,-4472.31,0.00010987,2]
[335324709,1724112645604,-3326.78,0.00010987,2]
[335324711,1724112645613,-5397.0,0.00010987,2]
[335324713,1724112645622,-5397.0,0.00010987,2]
[335324715,1724112645632,-151.0,0.00010987,2]
[335324717,1724112645641,-500.0,0.00010987,2]
[335324719,1724112645651,-4325.49,0.00010987,2]
[335324720,1724112645660,-4325.49,0.00010987,2]
[335324721,1724112645670,-19841.0,0.00010987,2]
[335324722,1724112645679,-1616.31,0.00010987,2]
[335324723,1724112645689,-4071.47,0.00010987,2]
[335324724,1724112645698,-1616.31,0.00010987,2]
[335324725,1724112645707,-2832.1,0.00010987,2]
[335324726,1724112645717,-604.92,0.00010987,2]
[335324727,1724112645726,-604.92,0.00010987,2]
[335324728,1724112645737,-1843.54,0.00010987,2]
[335324729,1724112645747,-1992.66,0.00010987,2]
[335324730,1724112645757,-1992.66,0.00010987,2]
[335324731,1724112645768,-590.59,0.00010987,2]
[335324732,1724112645777,-17883.61,0.00010987,2]
[335324733,1724112645788,-6242.71,0.00010987,2]
[335324734,1724112645797,-151.0,0.00010987,2]
[335324735,1724112645807,-6242.71,0.00010987,2]
[335324736,1724112645816,-500.0,0.00010987,2]
[335324737,1724112645826,-234.496402,0.00010987,2]
[335324738,1724112645835,-390.684488,0.00010987,2]
[335324739,1724112645845,-390.684488,0.00010987,2]
[335324740,1724112645855,-530.452209,0.00010987,2]
[335324741,1724112645864,-500.0,0.00010987,2]
[335324742,1724112645873,-530.452209,0.00010987,2]
[335324743,1724112645883,-500.0,0.00010987,2]
[335324744,1724112645892,-501.63,0.00010987,2]
[335324745,1724112645902,-516.34,0.00010987,2]
[335324746,1724112645912,-500.0,0.00010987,2]
[335324747,1724112645921,-5611.22,0.00010987,2]
[335324748,1724112645931,-5611.22,0.00010987,2]
[335324749,1724112645941,-500.0,0.00010987,2]
[335324750,1724112645950,-9405.7,0.00010987,2]
[335324751,1724112645960,-9405.7,0.00010987,2]
[335324752,1724112645969,-183.263232,0.00010987,2]
[335324753,1724112645978,-1869.55,0.00010987,2]
[335324754,1724112645989,-183.263232,0.00010987,2]
[335324755,1724112645998,-151.0,0.00010987,2]
[335324756,1724112646009,-151.0,0.00010987,2]
[335324757,1724112646018,-2287.92,0.00010987,2]
[335324758,1724112646027,-151.0,0.00010987,2]
[335324759,1724112646037,-5461.95,0.00010987,2]
[335324760,1724112646046,-5461.95,0.00010987,2]
[335324761,1724112646056,-500.0,0.00010987,2]
[335324762,1724112646066,-2521.0,0.00010987,2]
[335324763,1724112646075,-3144.87,0.00010987,2]
[335324764,1724112646084,-500.0,0.00010987,2]
[335324765,1724112646094,-17693.65,0.00010987,2]
[335324766,1724112646103,-17693.65,0.00010987,2]
[335324767,1724112646114,-151.0,0.00010987,2]
[335324768,1724112646123,-1474.09,0.00010987,2]
[335324769,1724112646134,-1474.09,0.00010987,2]
[335324770,1724112646144,-2395.86,0.00010987,2]
[335324771,1724112646153,-151.0,0.00010987,2]
[335324772,1724112646163,-151.0,0.00010988,2]
[335324773,1724112646172,-151.0,0.00010988,2]
[335324774,1724112646182,-151.0,0.00010988,2]
[335324775,1724112646191,-151.0,0.00010988,2]
[335324776,1724112646201,-151.0,0.00010988,2]
[335324777,1724112646210,-151.0,0.00010988,2]
[335324778,1724112646223,-151.0,0.00010988,2]
[335324779,1724112646233,-151.0,0.00010988,2]
[335324780,1724112646242,-151.0,0.00010988,2]
[335324781,1724112646252,-257.024298,0.00010988,2]
[335324782,1724112646261,-699.17,0.00010988,2]
[335324783,1724112646274,-699.17,0.00010988,2]
[335324784,1724112646283,-257.024298,0.00010988,2]
[335324785,1724112646292,-500.0,0.00010988,2]
[335324786,1724112646301,-484.91680533,0.00010988,2]
[335324787,1724112646311,-500.0,0.00010988,2]
[335324788,1724112646320,-500.0,0.00010988,2]
[335324789,1724112646329,-151.0,0.00010988,2]
[335324790,1724112646339,-500.0,0.00010988,2]
[335324791,1724112646349,-511.79,0.00010988,2]
[335324792,1724112646359,-597.67,0.00010988,2]
[335324793,1724112646368,-500.0,0.00010988,2]
[335324794,1724112646377,-500.0,0.00010988,2]
[335324795,1724112646387,-860.82,0.00010988,2]
[335324796,1724112646396,-860.82,0.00010988,2]
[335324797,1724112646406,-151.0,0.00010988,2]
[335324798,1724112646415,-500.0,0.00010988,2]
[335324799,1724112646424,-500.0,0.00010988,2]
[335324800,1724112646434,-597.09,0.00010988,2]
[335324801,1724112646444,-151.0,0.00010988,2]
[335324802,1724112646453,-162.843369,0.00010988,2]
[335324803,1724112646463,-162.843369,0.00010988,2]
[335324804,1724112646473,-2146.5,0.00010988,2]
[335324805,1724112646483,-151.0,0.00010988,2]
[335324806,1724112646492,-1678.18,0.00010988,2]
[335324807,1724112646501,-1108.21,0.00010988,2]
[335324808,1724112646510,-1556.87,0.00010988,2]
[335324809,1724112646519,-1803.16,0.00010988,2]
[335324810,1724112646528,-500.0,0.00010988,2]
[335324811,1724112646537,-3779.98,0.00010988,2]
[335324812,1724112646547,-500.0,0.00010988,2]
[335324813,1724112646556,-1136.11,0.00010988,2]
[335324814,1724112646566,-1127.88,0.00010988,2]
[335324815,1724112646575,-519.05,0.00010988,2]
[335324816,1724112646585,-564.07,0.00010988,2]
[335324817,1724112646594,-1586.25,0.00010988,2]
[335324818,1724112646604,-500.0,0.00010988,2]
[335324819,1724112646613,-1159.21,0.00010988,2]
[335324820,1724112646623,-500.0,0.00010988,2]
[335324821,1724112646632,-500.0,0.00010988,2]
[335324822,1724112646641,-500.0,0.00010988,2]
[335324823,1724112646650,-151.0,0.00010988,2]
[335324824,1724112646660,-280.976673,0.00010988,2]
[335324825,1724112646669,-151.0,0.00010988,2]
[335324826,1724112646678,-4463.21,0.00010988,2]
[335324827,1724112646687,-2917.84,0.00010988,2]
[335324828,1724112646696,-2406.39,0.00010988,2]
[335324829,1724112646706,-6438.37,0.00010988,2]
[335324830,1724112646715,-875.49,0.00010988,2]
[335324831,1724112646724,-3326.78,0.00010988,2]
[335324832,1724112646733,-151.0,0.00010988,2]
[335324833,1724112646742,-826.15,0.00010988,2]
[335324834,1724112646751,-151.0,0.00010988,2]
[335324835,1724112646761,-500.0,0.00010988,2]
[335324836,1724112646770,-151.0,0.00010988,2]
[335324837,1724112646780,-151.0,0.00010988,2]
[335324838,1724112646789,-151.0,0.00010988,2]
[335324839,1724112646799,-2067.27,0.00010988,2]
[335324840,1724112646809,-19841.0,0.00010988,2]
[335324841,1724112646819,-4071.47,0.00010988,2]
[335324842,1724112646828,-967.2,0.00010988,2]
[335324843,1724112646836,-2832.1,0.00010988,2]
[335324844,1724112646846,-785.57,0.00010988,2]
[335324845,1724112646856,-1843.54,0.00010988,2]
[335324846,1724112646866,-151.298561,0.00010988,2]
[335324847,1724112646877,-1270.61,0.00010988,2]
[335324848,1724112646887,-590.59,0.00010988,2]
[335324849,1724112646896,-17883.61,0.00010988,2]
[335324850,1724112646906,-500.0,0.00010988,2]
[335324851,1724112646915,-16551.5,0.00010988,2]
[335324852,1724112646925,-500.0,0.00010988,2]
[335324853,1724112646934,-3007.34,0.00010988,2]
[335324854,1724112646943,-500.0,0.00010988,2]
[335324855,1724112646952,-516.34,0.00010988,2]
[335324856,1724112646962,-3668.14,0.00010988,2]
[335324857,1724112646971,-500.0,0.00010988,2]
[335324858,1724112646981,-3644.93,0.00010988,2]
[335324859,1724112646990,-4893.36,0.00010988,2]
[335324860,1724112647000,-500.0,0.00010988,2]
[335324861,1724112647010,-1869.55,0.00010988,2]
[335324862,1724112647019,-2287.92,0.00010988,2]
[335324863,1724112647029,-572.6,0.00010988,2]
[335324864,1724112647039,-299.39,0.00010988,2]
[335324865,1724112647049,-2521.0,0.00010988,2]
[335324866,1724112647058,-3144.87,0.00010988,2]
[335324867,1724112647068,-500.0,0.00010988,2]
[335324868,1724112647077,-10877.04,0.00010988,2]
[335324869,1724112647087,-2395.86,0.00010988,2]
[335324870,1724112647096,-151.0,0.00010989,2]
[335324871,1724112647105,-151.0,0.00010989,2]
[335324872,1724112647115,-152.646301,0.00010989,2]
[335324873,1724112647124,-151.0,0.00010989,2]
[335324874,1724112647254,-151.0,0.00010989,2]
[335324875,1724112647265,-257.024298,0.00010989,2]
[335324876,1724112647275,-699.17,0.00010989,2]
[335324877,1724112647285,-257.024298,0.00010989,2]
[335324878,1724112647294,-151.0,0.00010989,2]
[335324879,1724112647303,-500.0,0.00010989,2]
[335324880,1724112647313,-188.575238,0.00010989,2]
[335324881,1724112647323,-500.0,0.00010989,2]
[335324882,1724112647332,-500.0,0.00010989,2]
[335324883,1724112647342,-151.0,0.00010989,2]
[335324884,1724112647351,-500.0,0.00010989,2]
[335324885,1724112647360,-511.79,0.00010989,2]
[335324886,1724112647370,-597.67,0.00010989,2]
[335324887,1724112647380,-500.0,0.00010989,2]
[335324888,1724112647389,-500.0,0.00010989,2]
[335324889,1724112647400,-358.50894313,0.00010989,2]
[335324890,1724112647410,-500.0,0.00010989,2]
[335324891,1724112647420,-597.09,0.00010989,2]
[335324892,1724112647429,-500.0,0.00010989,2]
[335324893,1724112647439,-2146.5,0.00010989,2]
[335324894,1724112647450,-1678.18,0.00010989,2]
[335324895,1724112647460,-1108.21,0.00010989,2]
[335324896,1724112647469,-1556.87,0.00010989,2]
[335324897,1724112647478,-151.0,0.00010989,2]
[335324898,1724112647488,-151.0,0.00010989,2]
[335324899,1724112647497,-151.0,0.00010989,2]
[335324900,1724112647507,-1803.16,0.00010989,2]
[335324901,1724112647515,-500.0,0.00010989,2]
[335324902,1724112647525,-500.0,0.00010989,2]
[335324903,1724112647535,-3779.98,0.00010989,2]
[335324904,1724112647545,-500.0,0.00010989,2]
[335324905,1724112647555,-151.0,0.00010989,2]
[335324906,1724112647564,-1136.11,0.00010989,2]
[335324907,1724112647573,-151.0,0.00010989,2]
[335324908,1724112647582,-1127.88,0.00010989,2]
[335324909,1724112647591,-519.05,0.00010989,2]
[335324910,1724112647601,-564.07,0.00010989,2]
[335324911,1724112647610,-1586.25,0.00010989,2]
[335324912,1724112647620,-343.228579,0.00010989,2]
[335324913,1724112647629,-495.72974237,0.00010989,2]
[335324914,1724112647639,-343.228579,0.00010989,2]
[335324915,1724112647649,-500.0,0.00010989,2]
[335324916,1724112647658,-1159.21,0.00010989,2]
[335324917,1724112647667,-500.0,0.00010989,2]
[335324918,1724112647677,-276.279486,0.00010989,2]
[335324919,1724112647686,-276.279486,0.00010989,2]
[335324920,1724112647695,-500.0,0.00010989,2]
[335324921,1724112647704,-919.6,0.00010989,2]
[335324922,1724112647714,-500.0,0.00010989,2]
[335324923,1724112647724,-151.0,0.00010989,2]
[335324924,1724112647733,-513.87082093,0.00010989,2]
[335324925,1724112647742,-151.0,0.00010989,2]
[335324926,1724112647752,-1048.26,0.00010989,2]
[335324927,1724112647761,-1755.03,0.00010989,2]
[335324928,1724112647770,-151.0,0.00010989,2]
[335324929,1724112647780,-500.0,0.00010989,2]
[335324930,1724112647789,-960.42,0.00010989,2]
[335324931,1724112647799,-1413.97,0.00010989,2]
[335324932,1724112647808,-4463.21,0.00010989,2]
[335324933,1724112647817,-151.0,0.00010989,2]
[335324934,1724112647827,-151.0,0.00010989,2]
[335324935,1724112647836,-151.0,0.00010989,2]
[335324936,1724112647846,-500.0,0.00010989,2]
[335324937,1724112647855,-2996.22,0.00010989,2]
[335324938,1724112647865,-2917.84,0.00010989,2]
[335324939,1724112647874,-2075.54,0.00010989,2]
[335324940,1724112647885,-151.0,0.00010989,2]
[335324941,1724112647894,-6438.37,0.00010989,2]
[335324942,1724112647904,-185.338777,0.00010989,2]
[335324943,1724112647913,-185.338777,0.00010989,2]
[335324944,1724112647923,-4472.31,0.00010989,2]
[335324945,1724112647933,-3326.78,0.00010989,2]
[335324946,1724112647942,-5397.0,0.00010989,2]
[335324947,1724112647952,-151.0,0.00010989,2]
[335324948,1724112647961,-500.0,0.00010989,2]
[335324949,1724112647972,-4325.49,0.00010989,2]
[335324950,1724112647981,-19841.0,0.00010989,2]
[335324951,1724112647990,-1616.31,0.00010989,2]
[335324952,1724112647999,-4071.47,0.00010989,2]
[335324953,1724112648009,-2832.1,0.00010989,2]
[335324954,1724112648018,-604.92,0.00010989,2]
[335324955,1724112648028,-1843.54,0.00010989,2]
[335324956,1724112648038,-1992.66,0.00010989,2]
[335324957,1724112648048,-590.59,0.00010989,2]
[335324958,1724112648058,-17883.61,0.00010989,2]
[335324959,1724112648067,-151.0,0.00010989,2]
[335324960,1724112648077,-6242.71,0.00010989,2]
[335324961,1724112648086,-500.0,0.00010989,2]
[335324962,1724112648096,-390.684488,0.00010989,2]
[335324963,1724112648106,-390.684488,0.00010989,2]
[335324964,1724112648116,-530.452209,0.00010989,2]
[335324965,1724112648125,-273.95,0.00010989,2]
[335324966,1724112648135,-530.452209,0.00010989,2]
[335324967,1724112648145,-500.0,0.00010989,2]
[335324968,1724112648155,-516.34,0.00010989,2]
[335324969,1724112648164,-5611.22,0.00010989,2]
[335324970,1724112648174,-9405.7,0.00010989,2]
[335324971,1724112648184,-183.263232,0.00010989,2]
[335324972,1724112648193,-183.263232,0.00010989,2]
[335324973,1724112648203,-151.0,0.00010989,2]
[335324974,1724112648212,-151.0,0.00010989,2]
[335324975,1724112648222,-151.0,0.00010989,2]
[335324976,1724112648232,-5461.95,0.00010989,2]
[335324977,1724112648242,-297.48958849,0.00010989,2]
[335324978,1724112648251,-500.0,0.00010989,2]
[335324979,1724112648262,-17693.65,0.00010989,2]
[335324980,1724112648275,-1474.09,0.00010989,2]
[335324981,1724112648285,-151.0,0.00010989,2]
[335324982,1724112648294,-275513.49406648,0.0001099,2]
[335324983,1724112648303,-151.0,0.0001099,2]
[335324984,1724112648314,-151.0,0.0001099,2]
[335324985,1724112648323,-151.0,0.0001099,2]
[335324986,1724112648332,-295.44184782,0.0001099,2]
[335324987,1724112648342,-3555.19445619,0.0001099,2]
[335324988,1724112648357,-151.0,0.0001099,2]
[335324989,1724112648367,-151.0,0.0001099,2]
[335324990,1724112648377,-209.566248,0.0001099,2]
[335324991,1724112648388,-151.0,0.0001099,2]
[335324992,1724112648398,-699.17,0.0001099,2]
[335324993,1724112648408,-860.82,0.0001099,2]
[335324994,1724112648418,-2406.39,0.0001099,2]
[335324995,1724112648427,-2406.39,0.0001099,2]
[335324996,1724112648437,-875.49,0.0001099,2]
[335324997,1724112648447,-875.49,0.0001099,2]
[335324998,1724112648456,-826.15,0.0001099,2]
[335324999,1724112648466,-826.15,0.0001099,2]
[335325000,1724112648476,-2067.27,0.0001099,2]
[335325001,1724112648487,-2067.27,0.0001099,2]
[335325002,1724112648504,-967.2,0.0001099,2]
[335325003,1724112648514,-967.2,0.0001099,2]
[335325004,1724112648523,-785.57,0.0001099,2]
[335325005,1724112648533,-785.57,0.0001099,2]
[335325006,1724112648542,-1270.61,0.0001099,2]
[335325007,1724112648552,-1270.61,0.0001099,2]
[335325008,1724112648561,-16551.5,0.0001099,2]
[335325009,1724112648571,-16551.5,0.0001099,2]
[335325010,1724112648580,-3007.34,0.0001099,2]
[335325011,1724112648590,-3007.34,0.0001099,2]
[335325012,1724112648599,-3668.14,0.0001099,2]
[335325013,1724112648608,-3668.14,0.0001099,2]
[335325014,1724112648617,-500.0,0.0001099,2]
[335325015,1724112648627,-500.0,0.0001099,2]
[335325016,1724112648636,-3644.93,0.0001099,2]
[335325017,1724112648645,-3644.93,0.0001099,2]
[335325018,1724112648655,-4893.36,0.0001099,2]
[335325019,1724112648665,-4893.36,0.0001099,2]
[335325020,1724112648674,-500.0,0.0001099,2]
[335325021,1724112648684,-1869.55,0.0001099,2]
[335325022,1724112648694,-2287.92,0.0001099,2]
[335325023,1724112648703,-2287.92,0.0001099,2]
[335325024,1724112648713,-572.6,0.0001099,2]
[335325025,1724112648722,-572.6,0.0001099,2]
[335325026,1724112648732,-2521.0,0.0001099,2]
[335325027,1724112648742,-2521.0,0.0001099,2]
[335325028,1724112648751,-3144.87,0.0001099,2]
[335325029,1724112648761,-10877.04,0.0001099,2]
[335325030,1724112648771,-10877.04,0.0001099,2]
[335325031,1724112648780,-2395.86,0.0001099,2]
[335325032,1724112648790,-2395.86,0.0001099,2]
[335325033,1724112648799,-699.17,0.00010991,2]
[335325034,1724112648808,-500.0,0.00010991,2]
[335325035,1724112648818,-500.0,0.00010991,2]
[335325036,1724112648827,-469.85,0.00010991,2]
[335325037,1724112648837,-500.0,0.00010991,2]
[335325038,1724112648846,-511.79,0.00010991,2]
[335325039,1724112648856,-597.67,0.00010991,2]
[335325040,1724112648865,-500.0,0.00010991,2]
[335325041,1724112648875,-500.0,0.00010991,2]
[335325042,1724112648885,-500.0,0.00010991,2]
[335325043,1724112648895,-597.09,0.00010991,2]
[335325044,1724112648904,-422.20536233,0.00010991,2]